[Event "Charity Cup MCCT Prel 2022"]
[Site "Online"]
[Date "2022.03.15"]
[Round "15.1"]
[White "Van Foreest, Jorden"]
[Black "Niemann, Hans Moke"]
[Result "1-0"]
[ECO "C67"]
[WhiteElo "2702"]
[BlackElo "2642"]
[Annotator "ChessBase"]
[PlyCount "283"]
[EventDate "2022.03.18"]
[EventType "tourn"]
[EventCountry "NET"]
[SourceTitle "playchess.com"]
[Source "ChessBase"]
[SourceQuality "1"]
[TimeControl "900+10"]

1. e4 {[%emt 0:00:00]} e5 {[%emt 0:00:00]} 2. Nf3 {[%emt 0:00:04]} Nc6 {[%emt 0:00:02]} 3. Bb5 {[%emt 0:00:10]} Nf6 {[%emt 0:00:11]} 4. O-O {[%emt 0:00:33]} Nxe4 {[%emt 0:00:03]} 5. d4 {[%emt 0:00:26]} Nd6 {[%emt 0:00:03]} 6. Bxc6 {[%emt 0:00:00]} dxc6 {[%emt 0:00:02]} 7. dxe5 {[%emt 0:00:01]} Nf5 {[%emt 0:00:01]} 8. Qxd8+ {[%emt 0:00:01]} Kxd8 {[%emt 0:00:00]} 9. h3 {[%emt 0:00:01]} Be7 {[%emt 0:00:22]} 10. Re1 {[%emt 0:00:18]} Ke8 {[%emt 0:00:20]} 11. Nc3 {[%emt 0:00:30]} Be6 {[%emt 0:00:16]} 12. g4 {[%emt 0:00:39]} Nh4 {[%emt 0:00:03]} 13. Nxh4 {[%emt 0:00:02]} Bxh4 {[%emt 0:00:02]} 14. Kg2 {[%emt 0:00:03]} Rd8 {[%emt 0:00:40]} 15. Bf4 {[%emt 0:00:59]} Be7 {[%emt 0:01:28]} 16. Rad1 {[%emt 0:00:18]} Bb4 {[%emt 0:00:10]} 17. a3 {[%emt 0:00:09]} Bxc3 {[%emt 0:00:12]} 18. bxc3 {[%emt 0:00:00]} Rd5 {[%emt 0:00:38]} 19. Kg3 {[%emt 0:00:28]} Kd7 {[%emt 0:00:32]} 20. Be3 {[%emt 0:00:12]} Rxd1 {[%emt 0:00:30]} 21. Rxd1+ {[%emt 0:00:03]} Kc8 {[%emt 0:00:00]} 22. f4 {[%emt 0:00:15]} g6 {[%emt 0:00:20]} 23. Rf1 {[%emt 0:02:43]} Bc4 {[%emt 0:00:05]} 24. Rf2 {[%emt 0:00:05]} Re8 {[%emt 0:00:37]} 25. Kh4 {[%emt 0:00:35]} h6 {[%emt 0:00:01]} 26. f5 {[%emt 0:00:35]} Rxe5 {[%emt 0:01:33]} 27. Bxh6 {[%emt 0:00:13]} Kd7 {[%emt 0:02:03]} 28. fxg6 {[%emt 0:01:38]} fxg6 {[%emt 0:00:02]} 29. Rf6 {[%emt 0:00:03]} Re6 {[%emt 0:00:30]} 30. Rf4 {[%emt 0:00:30]} Bd5 {[%emt 0:00:03]} 31. Kg5 {[%emt 0:00:10]} Be4 {[%emt 0:00:05]} 32. Rf2 {[%emt 0:00:35]} Kd6 {[%emt 0:00:05]} 33. Bg7 {[%emt 0:00:49]} c5 {[%emt 0:00:42]} 34. h4 {[%emt 0:00:20]} b5 {[%emt 0:00:02]} 35. Rd2+ {[%emt 0:02:35]} Kc6 {[%emt 0:00:04]} 36. Kf4 {[%emt 0:00:00]} Bd5 {[%emt 0:00:19]} 37. Be5 {[%emt 0:00:09]} Re8 {[%emt 0:00:20]} 38. Bxc7 {[%emt 0:00:41]} Re1 {[%emt 0:00:38]} 39. Kg5 {[%emt 0:00:05]} Rg1 {[%emt 0:00:51]} 40. Bh2 {[%emt 0:00:02]} Ra1 {[%emt 0:00:26]} 41. Kxg6 {[%emt 0:00:03]} Rxa3 {[%emt 0:00:03]} 42. Be5 {[%emt 0:00:26]} Ra4 {[%emt 0:00:04]} 43. Kg5 {[%emt 0:00:22]} Re4 {[%emt 0:00:13]} 44. Bf6 {[%emt 0:00:30]} Re1 {[%emt 0:01:01]} 45. h5 {[%emt 0:00:07]} Rh1 {[%emt 0:00:14]} 46. c4 {[%emt 0:00:51]} bxc4 {[%emt 0:00:10]} 47. Kg6 {[%emt 0:00:04]} Bf3 {[%emt 0:00:12]} 48. h6 {[%emt 0:01:16]} Bxg4 {[%emt 0:00:06]} 49. h7 {[%emt 0:00:30]} Bf5+ {[%emt 0:00:01]} 50. Kxf5 {[%emt 0:00:01]} Rxh7 {[%emt 0:00:01]} 51. Ke4 {[%emt 0:00:29]} a5 {[%emt 0:00:10]} 52. Be5 {[%emt 0:00:41]} Rh1 {[%emt 0:00:15]} 53. Ke3 {[%emt 0:00:27]} Kb5 {[%emt 0:00:17]} 54. Re2 {[%emt 0:00:34]} a4 {[%emt 0:00:22]} 55. Kd2 {[%emt 0:00:01]} a3 {[%emt 0:00:07]} 56. Re1 {[%emt 0:00:10]} Rh3 {[%emt 0:00:41]} 57. Re3 {[%emt 0:00:40]} Rh5 {[%emt 0:00:02]} 58. Bc3 {[%emt 0:00:03]} Rh1 {[%emt 0:00:47]} 59. Re8 {[%emt 0:00:16]} Rh2+ {[%emt 0:00:05]} 60. Kc1 {[%emt 0:00:03]} Rh1+ {[%emt 0:00:01]} 61. Re1 {[%emt 0:00:09]} Rh3 {[%emt 0:00:02]} 62. Be5 {[%emt 0:00:16]} c3 {[%emt 0:00:10]} 63. Kb1 {[%emt 0:00:02]} Kc4 {[%emt 0:00:21]} 64. Ka2 {[%emt 0:00:05]} Rf3 {[%emt 0:00:16]} 65. Re2 {[%emt 0:00:24]} Rf1 {[%emt 0:00:35]} 66. Re3 {[%emt 0:00:09]} Rf2 {[%emt 0:00:29]} 67. Rxc3+ {[%emt 0:00:17]} Kb4 {[%emt 0:00:01]} 68. Rb3+ {[%emt 0:00:09]} Kc4 {[%emt 0:00:03]} 69. Rc3+ {[%emt 0:00:05]} Kb4 {[%emt 0:00:02]} 70. Rb3+ {[%emt 0:00:18]} Kc4 {[%emt 0:00:02]} 71. Rxa3 {[%emt 0:00:07]} Rxc2+ {[%emt 0:00:08]} 72. Bb2 {[%emt 0:00:03]} Re2 {[%emt 0:00:07]} 73. Ra4+ {[%emt 0:00:04]} Kb5 {[%emt 0:00:07]} 74. Rh4 {[%emt 0:00:02]} c4 {[%emt 0:00:03]} 75. Kb1 {[%emt 0:00:05]} Kb4 {[%emt 0:00:04]} 76. Rh8 {[%emt 0:00:02]} Rg2 {[%emt 0:00:37]} 77. Rb8+ {[%emt 0:00:02]} Kc5 {[%emt 0:00:03]} 78. Ba3+ {[%emt 0:00:05]} Kd4 {[%emt 0:00:05]} 79. Rd8+ {[%emt 0:00:01]} Kc3 {[%emt 0:00:03]} 80. Bc5 {[%emt 0:00:17]} Rg4 {[%emt 0:00:43]} 81. Be3 {[%emt 0:00:05]} Kb3 {[%emt 0:00:08]} 82. Rb8+ {[%emt 0:00:23]} Kc3 {[%emt 0:00:05]} 83. Bc5 {[%emt 0:00:04]} Kd3 {[%emt 0:00:14]} 84. Rd8+ {[%emt 0:00:08]} Kc3 {[%emt 0:00:02]} 85. Ka2 {[%emt 0:00:11]} Kc2 {[%emt 0:00:19]} 86. Rh8 {[%emt 0:00:04]} Rg2 {[%emt 0:00:08]} 87. Rh3 {[%emt 0:00:27]} Rg8 {[%emt 0:00:43]} 88. Ka3 {[%emt 0:00:08]} c3 {[%emt 0:00:11]} 89. Bd6 {[%emt 0:00:32]} Re8 {[%emt 0:00:40]} 90. Rh2+ {[%emt 0:00:14]} Kb1 {[%emt 0:00:12]} 91. Bf4 {[%emt 0:00:16]} Rc8 {[%emt 0:00:50]} 92. Rh1+ {[%emt 0:00:11]} Kc2 {[%emt 0:00:01]} 93. Kb4 {[%emt 0:00:02]} Kd3 {[%emt 0:00:17]} 94. Kb3 {[%emt 0:00:09]} c2 {[%emt 0:00:12]} 95. Kb2 {[%emt 0:00:15]} Rc4 {[%emt 0:00:14]} 96. Rh3+ {[%emt 0:00:04]} Ke2 {[%emt 0:00:17]} 97. Bc1 {[%emt 0:00:04]} Rc8 {[%emt 0:00:04]} 98. Rh2+ {[%emt 0:00:02]} Kd1 {[%emt 0:00:03]} 99. Rd2+ {[%emt 0:00:02]} Ke1 {[%emt 0:00:02]} 100. Rd7 {[%emt 0:00:04]} Ke2 {[%emt 0:00:05]} 101. Bd2 {[%emt 0:00:22]} Rc6 {[%emt 0:00:05]} 102. Kc1 {[%emt 0:00:03]} Rc8 {[%emt 0:00:03]} 103. Rd6 {[%emt 0:00:15]} Rc4 {[%emt 0:00:08]} 104. Rh6 {[%emt 0:00:06]} Kd3 {[%emt 0:00:05]} 105. Rh3+ {[%emt 0:00:02]} Kd4 {[%emt 0:00:01]} 106. Kb2 {[%emt 0:00:04]} Rc8 {[%emt 0:00:26]} 107. Bc3+ {[%emt 0:00:03]} Ke4 {[%emt 0:00:01]} 108. Kxc2 {[%emt 0:00:01]} Rf8 {[%emt 0:00:14]} 109. Rh7 {[%emt 0:00:16]} Kd5 {[%emt 0:00:12]} 110. Rh4 {[%emt 0:00:57]} Rf3 {[%emt 0:00:13]} 111. Kb3 {[%emt 0:00:11]} Re3 {[%emt 0:00:06]} 112. Rh5+ {[%emt 0:00:02]} Ke6 {[%emt 0:00:07]} 113. Kc4 {[%emt 0:00:00]} Re4+ {[%emt 0:00:02]} 114. Bd4 {[%emt 0:00:02]} Re1 {[%emt 0:00:07]} 115. Kd3 {[%emt 0:00:03]} Rd1+ {[%emt 0:00:17]} 116. Ke4 {[%emt 0:00:01]} Re1+ {[%emt 0:00:02]} 117. Be3 {[%emt 0:00:00]} Kf6 {[%emt 0:00:06]} 118. Rh6+ {[%emt 0:00:01]} Kg7 {[%emt 0:00:01]} 119. Ra6 {[%emt 0:00:03]} Re2 {[%emt 0:00:04]} 120. Kf4 {[%emt 0:00:02]} Re1 {[%emt 0:00:08]} 121. Bd4+ {[%emt 0:00:13]} Kf7 {[%emt 0:00:47]} 122. Be5 {[%emt 0:00:02]} Rf1+ {[%emt 0:00:07]} 123. Ke4 {[%emt 0:00:03]} Rh1 {[%emt 0:00:14]} 124. Kd5 {[%emt 0:00:16]} Rd1+ {[%emt 0:00:06]} 125. Bd4 {[%emt 0:00:01]} Re1 {[%emt 0:00:02]} 126. Rf6+ {[%emt 0:00:07]} Ke7 {[%emt 0:00:17]} 127. Rg6 {[%emt 0:00:03]} Rd1 {[%emt 0:00:15]} 128. Rg7+ {[%emt 0:00:02]} Kf8 {[%emt 0:00:09]} 129. Ra7 {[%emt 0:00:04]} Rd2 {[%emt 0:00:10]} 130. Ke5 {[%emt 0:00:22]} Ke8 {[%emt 0:00:07]} 131. Bc5 {[%emt 0:00:05]} Kd8 {[%emt 0:00:12]} 132. Bd6 {[%emt 0:00:08]} Re2+ {[%emt 0:00:42]} 133. Kd5 {[%emt 0:00:02]} Ke8 {[%emt 0:00:06]} 134. Be5 {[%emt 0:00:04]} Kd8 {[%emt 0:00:42]} 135. Ke6 {[%emt 0:00:50]} Rc2 {[%emt 0:00:26]} 136. Rh7 {[%emt 0:00:38]} Kc8 {[%emt 0:00:14]} 137. Bd6 {[%emt 0:00:02]} Rd2 {[%emt 0:00:47]} 138. Rc7+ {[%emt 0:00:05]} Kd8 {[%emt 0:00:01]} 139. Rc4 {[%emt 0:00:17]} Re2+ {[%emt 0:00:12]} 140. Be5 {[%emt 0:00:02]} Re1 {[%emt 0:00:06]} 141. Rh4 {[%emt 0:00:08]} Kc8 {[%emt 0:00:45]} 142. Rb4 {[%emt 0:00:03]} 1-0